fUST/lending_fUST_20240309
["ID","MTS","AMOUNT","RATE_DAILY","PERIOD"]
[317838899,1709953833010,-1000.0,0.00022523,2]
[317838900,1709953833020,-1000.0,0.00022614,2]
[317838901,1709953833029,-3909.26,0.00022638,2]
[317838902,1709953833038,-3909.26,0.00022638,2]
[317838903,1709953833047,-3909.26,0.00022638,2]
[317838904,1709953833057,-3909.26,0.00022638,2]
[317838905,1709953833066,-3909.26,0.00022638,2]
[317838906,1709953833075,-3909.26,0.00022638,2]
[317838907,1709953833084,-3909.26,0.00022638,2]
[317838908,1709953833093,-3909.26,0.00022638,2]
[317838909,1709953833103,-3909.26,0.00022638,2]
[317838910,1709953833212,-3909.26,0.00022638,2]
[317838911,1709953833222,-179.53838164,0.00022638,2]
[317838912,1709953833232,-164.24411895,0.00022638,2]
[317838913,1709953833242,-500.0,0.00022638,2]
[317838914,1709953833253,-200.0,0.00022638,2]
[317838915,1709953833262,-60820.52190671,0.00022639,2]
[317839034,1709954080023,160.0,0.00016212,2]
[317839035,1709954080349,160.0,0.00016486,2]
[317839036,1709954080785,160.0,0.0001676,2]
[317839037,1709954081062,160.0,0.00017034,2]
[317839038,1709954081315,162.0,0.00017308,2]
[317839039,1709954131562,7084.69120043,0.00017308,2]
[317839040,1709954131592,9000.0,0.00017308,2]
[317839041,1709954131622,9000.0,0.00017308,2]
[317839042,1709954142002,-5000.0,0.00017308,2]
[317839044,1709954327600,155.15360207,0.000173,2]
[317839045,1709954335099,928.30558519,0.000173,2]
[317839046,1709954382583,7916.54081274,0.000173,2]
[317839125,1709955032552,-269.15280228,0.00017285,2]
[317839127,1709955032562,-928.30558519,0.00017286,2]
[317839129,1709955032572,-300.0,0.00017299,2]
[317839131,1709955032587,-79395.9394749,0.000173,2]
[317839133,1709955032597,-510.72348161,0.000189,2]
[317839135,1709955032607,-181.245409,0.00019178,2]
[317839137,1709955032616,-263.16276,0.00020858,2]
[317839139,1709955032626,-190.0,0.00021969,2]
[317839141,1709955032635,-162.0,0.00022,2]
[317839143,1709955032645,-162.0,0.00022192,2]
[317839145,1709955032655,-153.0,0.000222,2]
[317839147,1709955032664,-190.0,0.00022243,2]
[317839149,1709955032675,-8245.70720381,0.00022307,2]
[317839152,1709955032684,-5000.0,0.00022308,5]
[317839155,1709955032693,-598.594515,0.00022379,2]
[317839158,1709955032702,-433.306138,0.00022379,2]
[317839161,1709955032711,-629.69290256,0.00022489,2]
[317839164,1709955032720,-268.32645838,0.00022513,2]
[317839167,1709955032730,-1000.0,0.00022514,2]
[317839169,1709955032739,-192.0,0.00022517,2]
[317839171,1709955032748,-818.32427999,0.00022635,2]
[317839173,1709955032757,-1847.2,0.00022638,2]
[317839175,1709955032767,-1847.2,0.00022638,2]
[317839177,1709955032776,-1847.2,0.00022638,2]
[317839178,1709955032786,-1847.2,0.00022638,2]
[317839180,1709955032796,-1847.2,0.00022638,2]
[317839183,1709955032805,-1847.2,0.00022638,2]
[317839184,1709955032814,-1847.2,0.00022638,2]
[317839186,1709955032824,-1847.2,0.00022638,2]
[317839188,1709955032833,-1847.2,0.00022638,2]
[317839190,1709955032843,-1847.2,0.00022638,2]
[317839192,1709955032852,-289.31689637,0.00022638,2]
[317839194,1709955032861,-500.0,0.00022638,2]
[317839196,1709955032870,-500.0,0.00022638,2]
[317839198,1709955032879,-500.0,0.00022638,2]
[317839200,1709955032888,-500.0,0.00022638,2]
[317839202,1709955032897,-500.0,0.00022638,2]
[317839204,1709955032907,-500.0,0.00022638,2]
[317839206,1709955032916,-181.96056118,0.00022638,2]
[317839208,1709955032925,-347.15392377,0.00022638,2]
[317839210,1709955032934,-87481.59825493,0.00022639,2]
[317839212,1709955032943,-502.34018541,0.00022639,2]
[317839214,1709955032953,-598.594515,0.00022659,2]
[317839216,1709955032962,-433.306138,0.00022659,2]
[317839218,1709955032971,-300.0,0.000227,10]
[317839220,1709955032981,-500.0,0.00022739,2]
[317839222,1709955032990,-500.51934684,0.00022739,2]
[317839224,1709955032999,-155.11025984,0.00022739,2]
[317839226,1709955033008,-151.0,0.00022739,2]
[317839228,1709955033017,-151.925914,0.00022739,2]
[317839230,1709955033027,-500.0,0.00022739,2]
[317839232,1709955033036,-500.0,0.00022739,2]
[317839234,1709955033045,-280.88851458,0.00022739,2]
[317839236,1709955033054,-500.0,0.00022739,2]
[317839238,1709955033064,-500.0,0.00022739,2]
[317839240,1709955033073,-500.0,0.00022739,2]
[317839242,1709955033082,-500.0,0.00022739,2]
[317839244,1709955033091,-539.56909737,0.00022739,2]
[317839246,1709955033100,-500.0,0.00022739,2]
[317839248,1709955033110,-500.0,0.00022739,2]
[317839250,1709955033120,-500.0,0.00022739,2]
[317839252,1709955033131,-500.0,0.00022739,2]
[317839254,1709955033141,-396.5977258,0.00022739,2]
[317839256,1709955033150,-500.7842851,0.00022739,2]
[317839258,1709955033159,-500.0,0.00022739,2]
[317839260,1709955033169,-500.0,0.00022739,2]
[317839262,1709955033178,-500.0,0.00022739,2]
[317839264,1709955033188,-500.0,0.00022739,2]
[317839266,1709955033198,-500.0,0.00022739,2]
[317839268,1709955033208,-500.0,0.00022739,2]
[317839270,1709955033217,-500.0,0.00022739,2]
[317839272,1709955033226,-500.0,0.00022739,2]
[317839274,1709955033235,-501.89331367,0.00022739,2]
[317839276,1709955033244,-500.0,0.00022739,2]
[317839278,1709955033253,-500.0,0.00022739,2]
[317839280,1709955033262,-500.0,0.00022739,2]
[317839282,1709955033271,-500.0,0.00022739,2]
[317839284,1709955033280,-500.0,0.00022739,2]
[317839286,1709955033290,-500.0,0.00022739,2]
[317839288,1709955033299,-500.0,0.00022739,2]
[317839290,1709955033309,-151.0,0.00022739,2]
[317839292,1709955033318,-151.0,0.00022739,2]
[317839294,1709955033328,-193.476907,0.00022739,2]
[317839296,1709955033337,-500.0,0.00022739,2]
[317839299,1709955033346,-500.0,0.00022739,2]
[317839301,1709955033355,-500.0,0.00022739,2]
[317839302,1709955033365,-500.0,0.00022739,2]
[317839304,1709955033373,-500.0,0.00022739,2]
[317839307,1709955033383,-500.0,0.00022739,2]
[317839308,1709955033392,-500.0,0.00022739,2]
[317839310,1709955033402,-500.0,0.00022739,2]
[317839312,1709955033411,-500.0,0.00022739,2]
[317839313,1709955033422,-518.89028218,0.00022739,2]
[317839314,1709955033431,-500.0481868,0.00022739,2]
[317839315,1709955033441,-151.0,0.00022739,2]
[317839316,1709955033462,-151.0,0.00022739,2]
[317839317,1709955033471,-151.0,0.00022739,2]
[317839318,1709955033481,-151.0,0.00022739,2]
[317839319,1709955033490,-151.0,0.00022739,2]
[317839320,1709955033500,-151.0,0.00022739,2]
[317839321,1709955033510,-151.0,0.00022739,2]
[317839322,1709955033519,-151.0,0.00022739,2]
[317839323,1709955033529,-151.0,0.00022739,2]
[317839324,1709955033538,-151.0,0.00022739,2]
[317839325,1709955033548,-151.0,0.00022739,2]
[317839326,1709955033557,-181.959144,0.00022739,2]
[317839327,1709955033568,-500.0,0.00022739,2]
[317839328,1709955033583,-500.0,0.00022739,2]
[317839329,1709955033593,-500.0,0.00022739,2]
[317839330,1709955033603,-500.0,0.00022739,2]
[317839331,1709955033613,-500.0,0.00022739,2]
[317839332,1709955033624,-500.0,0.00022739,2]
[317839333,1709955033633,-500.0,0.00022739,2]
[317839334,1709955033643,-500.0,0.00022739,2]
[317839335,1709955033654,-500.0,0.00022739,2]
[317839336,1709955033665,-646.61228317,0.00022739,2]
[317839337,1709955033675,-500.0,0.00022739,2]
[317839338,1709955033685,-500.0,0.00022739,2]
[317839339,1709955033695,-500.0,0.00022739,2]
[317839340,1709955033705,-14577.18,0.00022739,2]
[317839341,1709955033714,-500.0,0.00022739,2]
[317839342,1709955033725,-14577.18,0.00022739,2]
[317839343,1709955033734,-500.0,0.00022739,2]
[317839344,1709955033745,-14577.18,0.00022739,2]
[317839345,1709955033756,-500.0,0.00022739,2]
[317839346,1709955033765,-14577.18,0.00022739,2]
[317839347,1709955033775,-500.0,0.00022739,2]
[317839348,1709955033787,-14577.18,0.00022739,2]
[317839349,1709955033797,-500.0,0.00022739,2]
[317839350,1709955033806,-14577.18,0.00022739,2]
[317839351,1709955033815,-14577.18,0.00022739,2]
[317839352,1709955033825,-500.0,0.00022739,2]
[317839353,1709955033835,-14577.18,0.00022739,2]
[317839354,1709955033844,-14577.18,0.00022739,2]
[317839355,1709955033854,-14577.18,0.00022739,2]
[317839356,1709955033863,-14577.18,0.00022739,2]
[317839357,1709955033873,-500.0,0.00022739,2]
[317839358,1709955033883,-500.0,0.00022739,2]
[317839359,1709955033892,-500.0,0.00022739,2]
[317839360,1709955033902,-500.0,0.00022739,2]
[317839361,1709955033912,-583.52543843,0.00022739,2]
[317839362,1709955033922,-500.0,0.00022739,2]
[317839363,1709955033932,-500.0,0.00022739,2]
[317839364,1709955033942,-500.0,0.00022739,2]
[317839365,1709955033951,-500.0,0.00022739,2]
[317839366,1709955033961,-500.0,0.00022739,2]
[317839367,1709955033970,-500.0,0.00022739,2]
[317839368,1709955033980,-500.0,0.00022739,2]
[317839369,1709955033989,-500.0,0.00022739,2]
[317839370,1709955033999,-500.81252439,0.00022739,2]
[317839371,1709955034009,-296.73285109,0.00022739,2]
[317839372,1709955034018,-500.0,0.00022739,2]
[317839373,1709955034028,-500.0,0.00022739,2]
[317839374,1709955034037,-500.0,0.00022739,2]
[317839375,1709955034170,-500.0,0.00022739,2]
[317839376,1709955034180,-500.0,0.00022739,2]
[317839377,1709955034189,-500.0,0.00022739,2]
[317839378,1709955034199,-4490.03,0.00022739,2]
[317839379,1709955034208,-500.0,0.00022739,2]
[317839380,1709955034218,-4490.03,0.00022739,2]
[317839381,1709955034227,-4490.03,0.00022739,2]
[317839382,1709955034237,-4490.03,0.00022739,2]
[317839383,1709955034246,-4490.03,0.00022739,2]
[317839384,1709955034255,-4490.03,0.00022739,2]
[317839385,1709955034264,-4490.03,0.00022739,2]
[317839386,1709955034273,-4490.03,0.00022739,2]
[317839387,1709955034282,-4490.03,0.00022739,2]
[317839388,1709955034291,-4490.03,0.00022739,2]
[317839389,1709955034300,-557.0,0.0002274,2]
[317839390,1709955034309,-1500.0,0.00022774,2]
[317839391,1709955034318,-3382.4637526,0.000228,7]
[317839392,1709955034328,-7977.72299142,0.000228,7]
[317839393,1709955034337,-581.0,0.000228,2]
[317839394,1709955034346,-151.0,0.00022809,2]
[317839395,1709955034355,-4490.03,0.00022809,2]
[317839396,1709955034365,-1500.0,0.0002281,2]
[317839397,1709955034374,-500.0,0.0002281,2]
[317839398,1709955034383,-500.0,0.0002281,2]
[317839399,1709955034392,-500.0,0.00022811,2]
[317839400,1709955034401,-14577.18,0.00022845,2]
[317839401,1709955034410,-1500.0,0.00022846,2]
[317839402,1709955034420,-500.0,0.00022865,2]
[317839403,1709955034430,-1500.0,0.00022882,2]
[317839404,1709955034438,-623.64186604,0.00022897,2]
[317839405,1709955034447,-623.64186601,0.00022897,2]
[317839406,1709955034457,-623.64186601,0.00022898,2]
[317839407,1709955034466,-623.64186601,0.00022898,2]
[317839408,1709955034476,-623.64186601,0.00022898,2]
[317839409,1709955034485,-623.64186601,0.00022899,2]
[317839410,1709955034494,-623.64186601,0.00022899,2]
[317839411,1709955034503,-623.64186601,0.00022899,2]
[317839412,1709955034513,-623.64186601,0.000229,2]
[317839413,1709955034524,-623.64186601,0.000229,2]
[317839414,1709955034534,-1500.0,0.00022918,2]
[317839415,1709955034543,-156.541972,0.00022939,2]
[317839416,1709955034552,-1661.798888,0.00022939,2]
[317839417,1709955034562,-598.594515,0.00022939,2]
[317839418,1709955034572,-433.306138,0.00022939,2]
[317839419,1709955034581,-1500.0,0.00022954,2]
[317839420,1709955034592,-204.98432255,0.00022975,2]
[317839421,1709955034602,-151.0,0.00022988,2]
[317839422,1709955034611,-4490.03,0.00022988,2]
[317839423,1709955034620,-500.0,0.00022989,2]
[317839424,1709955034631,-315.01050696,0.00022989,2]
[317839425,1709955034641,-1500.0,0.0002299,2]
[317839426,1709955034650,-14577.18,0.00022992,2]
[317839427,1709955034659,-500.0,0.00022993,2]
[317839428,1709955034671,-151.0,0.00022993,2]
[317839429,1709955034681,-4490.03,0.00022993,2]
[317839430,1709955034691,-500.0,0.00022994,2]
[317839431,1709955034700,-500.0,0.00022994,2]
[317839432,1709955034709,-14577.18,0.00022994,2]
[317839433,1709955034719,-500.0,0.00022995,2]
[317839434,1709955034729,-500.0,0.00022995,2]
[317839435,1709955034738,-4490.03,0.00022995,2]
[317839436,1709955034747,-500.0,0.00022996,2]
[317839437,1709955034757,-500.0,0.00022996,2]
[317839438,1709955034767,-14577.18,0.00022996,2]
[317839439,1709955034776,-14577.18,0.00022996,2]
[317839440,1709955034786,-4490.03,0.00022996,2]
[317839441,1709955034796,-500.0,0.00022997,2]
[317839442,1709955034805,-353.92408954,0.00022997,2]
[317839443,1709955034814,-500.0,0.00022997,2]
[317839444,1709955034823,-500.0,0.00022997,2]
[317839445,1709955034832,-1313.53588952,0.00022997,2]
[317839582,1709955044020,-263.16276,0.00021999,2]
[317839583,1709955044029,-1747.68795852,0.00022975,2]
[317839584,1709955044041,-4692.81083515,0.00022975,2]
[317839586,1709955048431,-1805.20841014,0.00022975,2]
[317839587,1709955048441,-500.0,0.00022991,2]
[317839588,1709955048451,-166.53658664,0.00022991,2]
[317839589,1709955048461,-500.0,0.00022991,2]
[317839590,1709955048471,-500.0,0.00022991,2]
[317839591,1709955048481,-500.0,0.00022991,2]
[317839592,1709955048490,-500.0,0.00022991,2]
[317839593,1709955048499,-500.0,0.00022991,2]
[317839594,1709955048508,-194.39875188,0.00022991,2]
[317839595,1709955048517,-500.0,0.00022991,2]
[317839596,1709955048526,-500.0,0.00022991,2]
[317839597,1709955048535,-500.0,0.00022991,2]
[317839598,1709955048545,-500.0,0.00022991,2]
[317839599,1709955048554,-500.0,0.00022991,2]
[317839600,1709955048564,-500.0,0.00022991,2]
[317839601,1709955048574,-500.0,0.00022991,2]
[317839602,1709955048586,-500.0,0.00022991,2]
[317839603,1709955048599,-500.0,0.00022991,2]
[317839604,1709955048611,-500.0,0.00022991,2]
[317839605,1709955048622,-500.0,0.00022991,2]
[317839606,1709955048633,-500.0,0.00022991,2]
[317839607,1709955048642,-500.0,0.00022991,2]
[317839608,1709955048651,-500.0,0.00022991,2]
[317839609,1709955048661,-294.81962151,0.00022991,2]
[317839610,1709955048671,-500.0,0.00022991,2]
[317839611,1709955048683,-500.0,0.00022991,2]
[317839612,1709955048694,-13263.64411048,0.00022997,2]
[317839613,1709955048703,-13373.57728108,0.00022997,2]
[317839759,1709956244447,-269.15280228,0.00020859,2]
[317839760,1709956244459,-928.30558519,0.0002086,2]
[317839761,1709956244469,-340.48232108,0.00020895,2]
[317839762,1709956244479,-177.259189,0.00021391,2]
[317839763,1709956244490,-634.9110942,0.00022538,2]
[317839927,1709957440053,-928.30558519,0.00020437,2]
[317839929,1709957440064,-439.55725408,0.00020438,2]
[317839931,1709957440075,-4737.46851221,0.00021706,2]
[317840238,1709957443108,-8457.31661269,0.00021706,2]
[317840240,1709957443117,-9048.21629375,0.00022,2]
[317840521,1709957446008,-343.03816939,0.00019606,2]
[317840523,1709957446018,-155.13807288,0.00020436,2]
[317840525,1709957446027,-49203.28431167,0.00022,2]
[317840527,1709957446036,-1287.40336014,0.00022,2]
[317840529,1709957446046,-251.28979898,0.00022,2]
[317840531,1709957446055,-505.0,0.00022,2]
[317840533,1709957446064,-6292.65750472,0.00022,2]
[317842317,1709958632179,-1474.17492676,0.00019581,2]
[317842319,1709958632189,-415.06737978,0.00019582,2]
[317842321,1709958632198,-269.15280228,0.00019582,2]
[317842323,1709958632208,-928.30558519,0.00019583,2]
[317842324,1709958632217,-235.151459,0.00019586,2]
[317842326,1709958632226,-192.56936779,0.000199,2]
[317842519,1709958643316,-36.12274514,0.000199,2]
[317842521,1709958643325,-283.66940369,0.0002,2]
[317842712,1709959505824,5000.0,0.00027,120]
[317842715,1709959593093,5000.0,0.00027,120]
[317842783,1709959832276,-928.30558519,0.000173,2]
[317842785,1709959832285,-269.15280228,0.000173,2]
[317842787,1709959832295,-3000.0,0.00017301,2]
[317842789,1709959832305,-1093.22809133,0.00017839,2]
[317842791,1709959832316,-325.14397417,0.00017839,2]
[317842795,1709959832348,-55.80286126,0.00017839,2]
[317842797,1709959832358,-276.71158652,0.0001784,2]
[317842799,1709959832367,-2146.09875286,0.00017857,2]
[317842801,1709959832378,-18769.32768214,0.00017857,2]
[317842804,1709959832388,-22951.06872608,0.00018336,2]
[317842807,1709959832399,-462.228,0.00018336,2]
[317842809,1709959832410,-439.565,0.00018336,2]
[317842823,1709959838415,-1047.13827392,0.00018336,2]
[317842824,1709959838424,-235.151459,0.00018673,2]
[317842825,1709959838434,-166.867524,0.00019178,2]
[317842826,1709959838443,-173.2729705,0.00019178,2]
[317842827,1709959838452,-360.90936874,0.0002,2]
[317842828,1709959838462,-153.0,0.00020082,2]
[317842829,1709959838472,-168.089218,0.00020635,2]
[317842830,1709959838481,-3653.22028069,0.00021,2]
[317842922,1709959843363,-287.92097301,0.00021,2]
[317842924,1709959843372,-5.61902691,0.00021041,2]
[317842963,1709959846348,-153.0,0.000207,2]
[317842965,1709959846358,-147.38097309,0.00021041,2]
[317842967,1709959846368,-307.6719613,0.00021041,2]
[317842969,1709959846377,-153.0,0.00021041,2]
[317842971,1709959846386,-153.0,0.00021041,2]
[317842973,1709959846395,-153.0,0.00021041,2]
[317842975,1709959846404,-196.07210742,0.000219,2]
[317842977,1709959846414,-1953.04969909,0.00022,2]
[317842979,1709959846423,-155.57612914,0.00022,2]
[317842981,1709959846433,-600.0,0.00022,2]
[317842983,1709959846443,-1208.74031605,0.00022,2]
[317842985,1709959846453,-218.43270798,0.00022,2]
[317842987,1709959846462,-21285.08110593,0.00022,2]
[317843348,1709961038664,-188.44397178,0.00019871,2]
[317843349,1709961038674,-928.30558519,0.00019872,2]
[317843350,1709961038683,-230.59298877,0.00019872,2]
[317843351,1709961038692,-269.15280228,0.00019872,2]
[317843352,1709961038702,-442.12585754,0.000199,2]
[317843353,1709961038711,-934.4294023,0.00020118,2]
[317843359,1709961041008,-725.8652943,0.00020118,2]
[317843360,1709961041018,-216.9830576,0.00020161,2]
[317843361,1709961041027,-12066.78080001,0.00021,2]
[317843362,1709961041037,-3941.1412537,0.00021386,2]
[317843363,1709961041047,-69.97489582,0.00021387,2]
[317843459,1709962232764,-155.15204901,0.00019234,2]
[317843460,1709962232773,-188.44397178,0.00019235,2]
[317843462,1709962232782,-669.17996548,0.00019236,2]
[317843464,1709962232791,-269.15280228,0.00019237,2]
[317843466,1709962232800,-294.75057169,0.00019286,2]
[317843468,1709962232810,-311.28270944,0.0002,2]
[317843470,1709962232819,-3941.1412537,0.00021,2]
[317843472,1709962232829,-550.52551838,0.00021387,2]
[317843474,1709962232838,-1009.45633079,0.00021999,2]
[317843476,1709962232847,-300.0,0.00021999,2]
[317843478,1709962232857,-53396.53056873,0.00022,2]
[317843480,1709962232866,-8245.70720381,0.00022,2]
[317843482,1709962232875,-500.0,0.00022,2]
[317843484,1709962232885,-500.0,0.00022,2]
[317843486,1709962232894,-546.22,0.00022,2]
[317843488,1709962232904,-592.0,0.00022,2]
[317843490,1709962232913,-4757.0,0.00022,2]
[317843492,1709962232922,-592.0,0.00022192,2]
[317843494,1709962232932,-592.0,0.00022466,2]
[317843496,1709962232941,-5000.0,0.00022538,2]
[317843498,1709962232950,-196.07210742,0.00022539,2]
[317843500,1709962232959,-8896.54426022,0.00022639,2]
[317843502,1709962232968,-300.0,0.000227,10]
[317843504,1709962232977,-500.53607645,0.00022739,2]
[317843506,1709962232987,-500.0,0.00022739,2]
[317843508,1709962232996,-501.25719048,0.00022739,2]
[317843510,1709962233006,-500.0,0.00022739,2]
[317843512,1709962233014,-420.94751551,0.00022739,2]
[317843514,1709962233024,-500.0,0.00022739,2]
[317843516,1709962233033,-500.6700599,0.00022739,2]
[317843518,1709962233042,-500.0,0.00022739,2]
[317843520,1709962233050,-500.0,0.00022739,2]
[317843522,1709962233059,-500.0,0.00022739,2]
[317843524,1709962233068,-500.0,0.00022739,2]
[317843526,1709962233077,-500.62783606,0.00022739,2]
[317843527,1709962233085,-500.0,0.00022739,2]
[317843529,1709962233095,-500.0,0.00022739,2]
[317843531,1709962233103,-500.0,0.00022739,2]
[317843533,1709962233112,-500.0,0.00022739,2]
[317843535,1709962233122,-500.0,0.00022739,2]
[317843537,1709962233131,-500.0,0.00022739,2]
[317843539,1709962233140,-175.49086516,0.00022739,2]
[317843541,1709962233149,-500.0,0.00022739,2]
[317843543,1709962233158,-500.0,0.00022739,2]
[317843545,1709962233166,-500.0,0.00022739,2]
[317843547,1709962233175,-500.0,0.00022739,2]
[317843549,1709962233184,-500.73228059,0.00022739,2]
[317843551,1709962233193,-500.0,0.00022739,2]
[317843553,1709962233203,-188.47299136,0.00022739,2]
[317843555,1709962233212,-500.0,0.00022739,2]
[317843556,1709962233222,-500.0,0.00022739,2]
[317843558,1709962233231,-500.0,0.00022739,2]
[317843560,1709962233240,-500.0,0.00022739,2]
[317843562,1709962233249,-500.0,0.00022739,2]
[317843564,1709962233258,-500.0,0.00022739,2]
[317843566,1709962233266,-220.41807614,0.00022739,2]
[317843568,1709962233275,-500.0,0.00022739,2]
[317843584,1709962233414,-500.0,0.00022739,2]
[317843586,1709962233425,-500.0,0.00022739,2]
[317843588,1709962233434,-500.0,0.00022739,2]
[317843590,1709962233443,-500.0,0.00022739,2]
[317843592,1709962233453,-500.0,0.00022739,2]
[317843594,1709962233462,-500.0,0.00022739,2]
[317843596,1709962233471,-275.26545765,0.00022739,2]
[317843897,1709962240720,-224.73454235,0.00022739,2]
[317843899,1709962240730,-500.0,0.00022739,2]
[317843900,1709962240741,-500.0,0.00022739,2]
[317843901,1709962240751,-429.12971787,0.00022739,2]
[317843927,1709962244448,-70.87028213,0.00022739,2]
[317843928,1709962244458,-500.0,0.00022739,2]
[317843929,1709962244467,-500.0,0.00022739,2]
[317843930,1709962244476,-255.09679616,0.00022739,2]
[317843931,1709962244486,-1683.76,0.00022739,2]
[317843932,1709962244495,-1683.76,0.00022739,2]
[317843933,1709962244505,-1683.76,0.00022739,2]
[317843934,1709962244514,-500.0,0.00022739,2]
[317843935,1709962244524,-365.43292171,0.00022739,2]
[317843944,1709962246827,-134.56707829,0.00022739,2]
[317843945,1709962246837,-500.0,0.00022739,2]
[317843946,1709962246845,-93.68776005,0.00022739,2]
[317844258,1709963431955,-552.81959013,0.00018252,2]
[317844299,1709963439895,-116.36037535,0.00018252,2]
[317844300,1709963439905,-155.15204901,0.00018252,2]
[317844301,1709963439914,-174.50445543,0.00018252,2]
[317844302,1709963439927,-13.93951635,0.00018252,2]
[317844303,1709963439936,-269.15280228,0.00018253,2]
[317844304,1709963439945,-277.8244212,0.0001826,2]
[317844305,1709963439955,-2471.16926203,0.00019034,2]
[317844306,1709963439969,-5468.55147536,0.00019034,2]
[317844318,1709963442882,-7310.0,0.00019034,2]
[317844319,1709963442894,-4127.08221631,0.00019034,2]
[317844320,1709963442903,-268.361291,0.00019094,2]
[317844321,1709963442913,-187.237387,0.00019178,2]
[317844322,1709963442923,-3162.64964171,0.0002,2]
[317844323,1709963445941,-1049.90105317,0.0002,2]
[317844427,1709964632145,-269.15280228,0.0001887,2]
[317844428,1709964632154,-155.15204901,0.00018871,2]
[317844430,1709964632164,-511.70782028,0.000189,2]
[317844432,1709964632174,-155.15204901,0.00019999,2]
[317844434,1709964632183,-12329.20008189,0.0002,2]
[317844435,1709964632201,-520.0,0.0002,2]
[317844454,1709964638094,-2126.98666319,0.0002,2]
[317844455,1709964638204,-15237.74150434,0.0002,2]
[317844456,1709964638216,-432.85647337,0.0002,2]
[317844457,1709964638228,-2124.26173748,0.0002,2]
[317844467,1709964640134,-2556.09658286,0.0002,2]
[317844506,1709964643890,-19361.18040234,0.0002,2]
[317846167,1709965440851,235.151459,0.00017056,2]
[317846169,1709965470219,155.15204901,0.00017056,2]
[317846170,1709965490224,155.19427519,0.00017056,2]
[317846200,1709965797935,8454.5022168,0.0001682,2]
[317846201,1709965797967,9000.0,0.0001682,2]
[317846202,1709965797997,1314.8254653,0.0001682,2]
[317846240,1709965832266,-188.44397178,0.00017671,2]
[317846241,1709965832276,-731.74862832,0.00017671,2]
[317846242,1709965832287,-14.03876143,0.00017671,2]
[317846243,1709965832297,-155.15204901,0.00017671,2]
[317846244,1709965832306,-134.33676473,0.00017672,2]
[317846302,1709965840286,-1270.87290279,0.0001767,2]
[317846373,1709965843304,-591.00990076,0.00017565,2]
[317846508,1709965846358,-22360.05882534,0.00017565,2]
[317846509,1709965846368,-155.94121412,0.00017669,2]
[317846510,1709965846377,-335.61691315,0.0001767,2]
[317846511,1709965846391,-793.96882046,0.00017672,2]
[317846512,1709965846402,-155.15204901,0.00017672,2]
[317846513,1709965846412,-324.21878164,0.00017672,2]
[317846514,1709965846421,-1474.17492676,0.00017673,2]
[317846515,1709965846431,-230.59298877,0.00017674,2]
[317846517,1709965846440,-269.15280228,0.00017675,2]
[317846519,1709965846450,-185.11406145,0.00018032,2]
[317846520,1709965846459,-418.99415295,0.00018897,2]
[317846521,1709965846469,-643.27685255,0.000189,2]
[317846522,1709965846480,-155.15204901,0.00019177,2]
[317846523,1709965846490,-165.393169,0.00019178,2]
[317846524,1709965846500,-197.04010283,0.000199,2]
[317846525,1709965846511,-31587.43991333,0.0002,2]
[317846526,1709965846522,-1500.95503508,0.0002,2]
[317846527,1709965846534,-238.88134012,0.0002,2]
[317846528,1709965846544,-400.0,0.0002,2]
[317846529,1709965846553,-185.11406145,0.00020466,2]
[317846530,1709965846563,-3192.01289202,0.00021,2]
[317846531,1709965846573,-501.0,0.00022,2]